lending/lending_fUSD_20240219
["ID","MTS","AMOUNT","RATE_DAILY","PERIOD"]
[314426618,1708332646773,-151.0,0.00047,14]
[314426619,1708332646783,-450.0,0.00047,14]
[314426620,1708332646793,-450.0,0.00047,14]
[314426621,1708332646802,-151.0,0.00047,14]
[314426622,1708332646811,-294.297449,0.00047,14]
[314426623,1708332646819,-294.297449,0.00047,14]
[314426624,1708332646832,-208.0,0.00047015,21]
[314426625,1708332646841,-500.0,0.00047081,30]
[314426626,1708332646851,-1997.42,0.000471,5]
[314426627,1708332646861,-1997.42,0.000471,5]
[314426628,1708332646870,-1997.42,0.000471,5]
[314426629,1708332646879,-1997.42,0.000471,5]
[314426630,1708332646888,-1997.42,0.000471,5]
[314426631,1708332646897,-1997.42,0.000471,5]
[314426632,1708332646906,-1997.42,0.000471,5]
[314426633,1708332646915,-1997.42,0.000471,5]
[314426634,1708332646925,-1997.42,0.000471,5]
[314426635,1708332646933,-1997.42,0.000471,5]
[314426636,1708332646942,-1997.42,0.000471,5]
[314426637,1708332646952,-1997.42,0.000471,5]
[314426638,1708332646962,-1997.42,0.000471,5]
[314426639,1708332646971,-1997.42,0.000471,5]
[314426640,1708332646981,-1997.42,0.000471,5]
[314426641,1708332646990,-1997.42,0.000471,5]
[314426642,1708332647000,-1997.42,0.000471,5]
[314426643,1708332647009,-1997.42,0.000471,5]
[314426644,1708332647018,-1997.42,0.000471,5]
[314426645,1708332647027,-1997.42,0.000471,5]
[314426646,1708332647038,-152.82,0.000471,5]
[314426647,1708332647046,-152.82,0.000471,5]
[314426648,1708332647056,-152.82,0.000471,5]
[314426649,1708332647064,-152.82,0.000471,5]
[314426650,1708332647073,-152.82,0.000471,5]
[314426651,1708332647082,-152.82,0.000471,5]
[314426652,1708332647091,-152.82,0.000471,5]
[314426653,1708332647100,-152.82,0.000471,5]
[314426654,1708332647109,-230.0,0.00047121,90]
[314426655,1708332647118,-800.0,0.00047123,2]
[314426656,1708332647127,-217.21120188,0.00047123,120]
[314426657,1708332647136,-165.770455,0.00047123,14]
[314426658,1708332647146,-1750.0,0.00047186,7]
[314426659,1708332647155,-446.47,0.00047263,2]
[314426660,1708332647164,-500.0,0.000473,14]
[314426661,1708332647173,-500.0,0.000473,14]
[314426662,1708332647182,-500.0,0.000473,14]
[314426663,1708332647191,-500.0,0.000473,14]
[314426664,1708332647200,-500.0,0.000473,14]
[314426665,1708332647209,-500.0,0.000473,14]
[314426666,1708332647218,-500.0,0.000473,14]
[314426667,1708332647227,-500.0,0.000473,14]
[314426668,1708332647236,-500.0,0.000473,14]
[314426669,1708332647246,-500.0,0.000473,14]
[314426670,1708332647255,-500.0,0.000473,14]
[314426671,1708332647265,-500.0,0.000473,14]
[314426672,1708332647274,-500.0,0.000473,14]
[314426673,1708332647283,-500.0,0.000473,14]
[314426674,1708332647292,-500.0,0.000473,14]
[314426675,1708332647302,-500.0,0.000473,14]
[314426676,1708332647311,-500.0,0.000473,14]
[314426677,1708332647321,-504.11753401,0.000473,14]
[314426678,1708332647330,-150.0,0.0004744,2]
[314426679,1708332647340,-3800.0,0.000475,60]
[314426680,1708332647349,-299.0,0.000475,2]
[314426681,1708332647358,-2006.33724613,0.000475,120]
[314426682,1708332647368,-5098.19072078,0.000476,2]
[314426683,1708332647377,-200.0,0.000476,22]
[314426684,1708332647386,-500.0,0.00047629,30]
[314426685,1708332647395,-1000.0,0.00047641,4]
[314426686,1708332647405,-303.82267783,0.000477,30]
[314426687,1708332647414,-40000.0,0.000477,30]
[314426688,1708332647423,-2000.0,0.00047734,7]
[314426689,1708332647432,-889.62652836,0.00047795,5]
[314426690,1708332647443,-12000.0,0.0004784,3]
[314426691,1708332647453,-5670.08192709,0.00047843,9]
[314426692,1708332647463,-173.0,0.0004787,3]
[314426693,1708332647473,-150.5,0.0004788,30]
[314426694,1708332647482,-173.0,0.0004788,3]
[314426695,1708332647492,-7148.15646006,0.00047882,120]
[314426696,1708332647502,-150.5,0.0004789,30]
[314426697,1708332647511,-173.0,0.0004789,3]
[314426698,1708332647520,-2086.60492986,0.000479,120]
[314426699,1708332647529,-2046.83079423,0.000479,57]
[314426700,1708332647539,-26196.46749311,0.000479,60]
[314426701,1708332647548,-523.05739356,0.000479,2]
[314426702,1708332647557,-1069.42821694,0.000479,2]
[314426703,1708332647566,-919.5895588,0.000479,8]
[314426704,1708332647576,-222.92992165,0.000479,2]
[314426705,1708332647585,-800.0,0.00047945,2]
[314426706,1708332647594,-165.770455,0.00047945,14]
[314426707,1708332647604,-173.0,0.0004798,3]
[314426708,1708332647613,-200.0,0.00047987,75]
[314426709,1708332647625,-12652.0,0.0004799,120]
[314426710,1708332647635,-173.0,0.0004799,3]
[314426711,1708332647644,-150.0,0.00047999,60]
[314426712,1708332647654,-150.0,0.00047999,60]
[314426713,1708332647663,-197.50657589,0.00047999,7]
[314426714,1708332647673,-150.0,0.00047999,7]
[314426715,1708332647682,-197.50657589,0.00047999,7]
[314426716,1708332647691,-150.0,0.00047999,7]
[314426717,1708332647701,-150.0,0.00047999,7]
[314426718,1708332647710,-197.50657589,0.00047999,7]
[314426719,1708332647720,-197.50657589,0.00047999,7]
[314426720,1708332647732,-150.0,0.00047999,7]
[314426721,1708332647742,-197.50657589,0.00047999,7]
[314426722,1708332647752,-150.0,0.00047999,7]
[314426723,1708332647761,-150.0,0.00047999,7]
[314426724,1708332647771,-197.50657589,0.00047999,7]
[314426725,1708332647780,-197.50657589,0.00047999,7]
[314426726,1708332647790,-150.0,0.00047999,7]
[314426727,1708332647804,-197.50657589,0.00047999,7]
[314426728,1708332647813,-150.0,0.00047999,7]
[314426729,1708332647822,-100000.0,0.00048,38]
[314426730,1708332647832,-64348.20538551,0.00048,15]
[314426731,1708332647841,-3312.0,0.00048,120]
[314426732,1708332647850,-8000.0,0.00048,120]
[314426733,1708332647859,-63367.00963446,0.00048,90]
[314426734,1708332648024,-322.25706152,0.000449,2]
[314426735,1708332648038,-251.58,0.000449,2]
[314426736,1708332648050,-1086.62560278,0.000449,2]
[314426737,1708332648062,-309.12639055,0.000449,2]
[314426738,1708332648076,-452.25615153,0.000449,2]
[314426739,1708332648089,-359.45574608,0.000449,2]
[314426740,1708332648142,-152.771,0.00040644,30]
[314426741,1708332648152,-1660.367952,0.000449,2]
[314426742,1708332648162,-390.64725405,0.00046926,42]
[314426743,1708332648171,-11667.45586824,0.00048,90]
[314426744,1708332648182,-52198.64226806,0.00048,90]
[314426745,1708332648254,-500.0,0.00048,90]
[314426746,1708332648273,-92246.94086936,0.00048,90]
[314426747,1708332648284,-500.0,0.00048,90]
[314426748,1708332648298,-269.99913659,0.00048,90]
[314426749,1708332648310,-399.4175446,0.00048,90]
[314426750,1708332648322,-5829.0,0.00048,90]
[314426751,1708332648334,-15223.80833675,0.00048,90]
[314426752,1708332648474,-150.0,0.0003949,2]
[314426753,1708332648483,-155.0,0.00040642,4]
[314426754,1708332648494,-4073.7347142,0.0004601,2]
[314426755,1708332648503,-4441.66890444,0.000464,2]
[314426756,1708332648513,-3875.8819159,0.00046773,2]
[314426757,1708332648522,-3678.0291177,0.00046936,2]
[314426758,1708332648532,-2407.40093976,0.00046968,2]
[314426759,1708332665142,277.37292747,0.000251,2]
[314426760,1708332670138,1234.01311889,0.00023,2]
[314426761,1708332670164,1499182.07484022,0.00023,2]
[314426762,1708332670191,1500000.0,0.00023,2]
[314426763,1708332670220,3142.63727527,0.00023,2]
[314426764,1708332670253,3399184.31625136,0.00023,2]
[314426765,1708332670278,3705235.71693832,0.00023,2]
[314426768,1708332692299,540.07999115,0.0001,2]
[314426769,1708332695106,1653.7187781,0.0002,2]
[314426770,1708332736262,4873.96259703,0.0002,2]
[314426771,1708332750850,4873.96259703,0.0002,2]
[314426772,1708332768767,4873.96259703,0.0002,2]
[314426773,1708332788770,4873.96259703,0.0002,2]
[314426774,1708332808778,4873.96259703,0.0002,2]
[314426775,1708332830873,475630.18701485,0.00023,2]
[314426776,1708332830901,500000.0,0.00023,2]
[314426777,1708332830924,500000.0,0.00023,2]
[314426778,1708332830945,3205529.97617107,0.00023,2]
[314426779,1708332847866,4873.96259703,0.0002,2]
[314426780,1708332864474,293.41056265,0.00022,2]
[314426782,1708332880014,3335.76489606,0.0002,2]
[314426801,1708333633125,-508.3966548,0.00026689,2]
[314426802,1708333633148,-148.44191151,0.00026689,2]
[314426803,1708333636107,-155.0,0.00026688,2]
[314426804,1708333636130,-389.22996548,0.00026689,2]
[314426805,1708333636151,-171.70342306,0.0002669,2]
[314426806,1708333636172,-155.0,0.00026777,2]
[314426807,1708333636194,-280.06862927,0.00026778,2]
[314426817,1708333749093,-155.0,0.00026787,2]
[314426818,1708333749113,-537.67187699,0.00026787,2]
[314426819,1708333749132,-338.9311032,0.00026788,2]
[314426820,1708333749154,-249.41991934,0.0002679,2]
[314426821,1708333749173,-171.70342306,0.0002679,2]
[314426822,1708333749195,-639.25925362,0.00026888,2]
[314426823,1708333749214,-250.0,0.00026888,2]
[314426824,1708333749233,-12291.44172746,0.00026889,2]
[314426825,1708333749254,-15622.75569633,0.0002689,2]
[314426826,1708333749284,-5005.832,0.0002689,2]
[314426827,1708333750120,-32880.605,0.0002689,2]
[314426830,1708333753092,-23601.922,0.0002689,2]
[314426831,1708333765808,-18230.29976038,0.0002689,2]
[314426832,1708333766175,-3287.3578,0.0002689,2]
[314426833,1708333768083,-18930.55014212,0.0002689,2]
[314426834,1708333768104,-249.41991928,0.00027443,2]
[314426835,1708333768125,-249.41991928,0.00028096,2]
[314426836,1708333768146,-249.41991928,0.00028749,2]
[314426837,1708333768166,-249.41991928,0.00029403,2]
[314426838,1708333768186,-2222.51624125,0.0003,2]
[314426839,1708333768209,-249.41991928,0.00030056,2]
[314426840,1708333768230,-249.41991928,0.00030709,2]
[314426841,1708333768250,-203.86860901,0.00031362,2]
[314426848,1708333831632,-45.55131027,0.00031362,2]
[314426850,1708333831643,-249.41991928,0.00032015,2]
[314426852,1708333831652,-127.69672044,0.00032668,2]
[314426854,1708333831689,-121.72319884,0.00032668,2]
[314426855,1708333831698,-1280.5885544,0.000332,2]
[314426856,1708333831746,-1847.0545072,0.000332,2]
[314426857,1708333831758,-2796.49080795,0.000332,2]
[314426858,1708333831802,-633.84126058,0.000332,2]
[314426859,1708333831861,-1331.15028803,0.000332,2]
[314426860,1708333831873,-360.98000001,0.000332,2]
[314426861,1708333831917,-643.36390765,0.000332,2]
[314426867,1708333837730,-959.53067418,0.000332,2]
[314426868,1708333837740,-249.41991928,0.00033322,2]
[314426869,1708333837750,-249.41991928,0.00033975,2]
[314426870,1708333837760,-249.41991928,0.00034628,2]
[314426871,1708333837770,-3451.64774357,0.00035,5]
[314426872,1708333837779,-249.41991928,0.00035281,2]
[314426873,1708333837788,-516.87,0.00035517,2]
[314426874,1708333837797,-282.442586,0.00035664,4]
[314426875,1708333837806,-176.67,0.00035665,2]
[314426876,1708333837815,-249.41991928,0.00035934,2]
[314426877,1708333837825,-201.97,0.00036153,2]
[314426878,1708333837834,-7172.3681235,0.00036389,2]
[314426879,1708333837843,-6285.58,0.00036489,2]
[314426880,1708333837852,-730.83,0.0003654,2]
[314426881,1708333837861,-249.41991928,0.00036587,2]
[314426882,1708333837870,-7172.36812346,0.00036594,2]
[314426883,1708333837879,-2000.0,0.00036746,2]
[314426884,1708333837888,-678.63,0.00036768,2]
[314426885,1708333837898,-162.43,0.0003699,2]
[314426886,1708333837907,-159.26,0.00037225,2]
[314426887,1708333837917,-249.41991928,0.00037241,2]
[314426888,1708333837927,-165.38,0.000373,2]
[314426889,1708333837936,-165.77,0.00037343,2]
[314426890,1708333837945,-250.0,0.00037419,2]
[314426891,1708333837954,-172.91,0.0003742,2]
[314426892,1708333837963,-208.0,0.00037522,2]
[314426893,1708333837972,-208.0,0.00037522,2]
[314426894,1708333837981,-221.42,0.00037573,2]
[314426895,1708333837990,-165.38,0.00037767,2]
[314426896,1708333837999,-516.87,0.0003778,2]
[314426897,1708333838009,-154.03,0.00037825,2]
[314426898,1708333838018,-249.41991928,0.00037894,2]
[314426899,1708333838026,-198.1308592,0.00037998,4]
[314426900,1708333838035,-1453.31663693,0.00037998,2]
[314426901,1708333838044,-234.54054591,0.00037999,4]
[314426902,1708333838053,-94839.45,0.00038,30]
[314426903,1708333838062,-7172.36812346,0.00038007,2]
[314426905,1708333838071,-730.83,0.00038184,2]
[314426907,1708333838080,-165.38,0.00038233,2]
[314426909,1708333838089,-152.46,0.00038274,2]
[314426910,1708333838098,-156.37480484,0.0003829,20]
[314426912,1708333838107,-522.38850049,0.00038326,2]
[314426914,1708333838116,-906.92,0.00038344,2]
[314426916,1708333838126,-150.0,0.00038356,2]
[314426918,1708333838135,-427.11,0.00038356,15]
[314426920,1708333838144,-155.54928741,0.00038426,8]
[314426922,1708333838153,-608.92155254,0.00038426,8]
[314426924,1708333838162,-8356.44093466,0.00038426,8]
[314426927,1708333838171,-1063.16551528,0.00038426,7]
[314426928,1708333838180,-275.0,0.00038426,7]
[314426929,1708333838189,-151.0,0.00038433,7]
[314426930,1708333838198,-2347.16865298,0.00038433,13]
[314426931,1708333838208,-220.01438544,0.00038433,10]
[314426932,1708333838217,-230.05074413,0.00038433,13]
[314426933,1708333838226,-778.58,0.00038463,2]
[314426934,1708333838236,-249.41991928,0.00038547,2]
[314426935,1708333838245,-158.595725,0.00038551,7]
[314426936,1708333838254,-165.38,0.00038699,2]
[314426937,1708333838264,-14297.2156,0.000387,2]
[314426938,1708333838274,-1000.0,0.000387,2]
[314426939,1708333838287,-1188.18038118,0.00038765,2]
[314426940,1708333838296,-30523.78399627,0.000388,3]
[314426941,1708333838306,-1000.0,0.000388,2]
[314426942,1708333838315,-167.0,0.00038899,2]
[314426943,1708333838325,-2841.32,0.000389,3]
[314426944,1708333838334,-2841.32,0.000389,3]
[314426945,1708333838343,-2841.32,0.000389,3]
[314426946,1708333838352,-2841.32,0.000389,3]
[314426947,1708333838363,-2841.32,0.000389,3]
[314426948,1708333838373,-2841.32,0.000389,3]
[314426949,1708333838382,-2841.32,0.000389,3]
[314426950,1708333838391,-2841.32,0.000389,3]
[314426951,1708333838403,-2841.32,0.000389,3]
[314426952,1708333838412,-2841.32,0.000389,3]
[314426953,1708333838421,-2841.32,0.000389,3]
[314426954,1708333838431,-2841.32,0.000389,3]
[314426955,1708333838440,-2841.32,0.000389,3]
[314426956,1708333838449,-2841.32,0.000389,3]
[314426957,1708333838458,-2841.32,0.000389,3]
[314426958,1708333838467,-2841.32,0.000389,3]
[314426959,1708333838478,-2841.32,0.000389,3]
[314426960,1708333838488,-2841.32,0.000389,3]
[314426961,1708333838497,-2841.32,0.000389,3]
[314426962,1708333838507,-2841.32,0.000389,3]
[314426963,1708333838517,-152.76,0.000389,3]
[314426964,1708333838526,-152.76,0.000389,3]
[314426965,1708333838537,-152.76,0.000389,3]
[314426966,1708333838545,-152.76,0.000389,3]
[314426967,1708333838554,-152.76,0.000389,3]
[314426968,1708333838563,-152.76,0.000389,3]
[314426969,1708333838572,-150.0,0.00039,2]
[314426970,1708333838581,-176.06,0.00039161,2]
[314426971,1708333838590,-165.38,0.00039165,2]
[314426972,1708333838600,-280.10215641,0.00039187,2]
[314426973,1708333838609,-154.32766975,0.0003919,3]
[314426974,1708333838618,-189.03109604,0.0003919,12]
[314426975,1708333838627,-537.42092009,0.0003919,2]
[314426976,1708333838636,-180.66550919,0.00039197,9]
[314426977,1708333838646,-169.18834276,0.00039197,9]
[314426978,1708333838655,-5000.0,0.000392,3]
[314426979,1708333838664,-249.41991928,0.000392,2]
[314426980,1708333838673,-581.10105418,0.000392,2]
[314426981,1708333838682,-1822.19727542,0.000392,2]
[314426982,1708333838691,-226.16214046,0.000392,2]
[314426983,1708333838847,-773.67762146,0.000392,2]
[314426984,1708333838856,-151.0,0.00039217,4]
[314426985,1708333838866,-694.89,0.0003926,2]
[314426986,1708333838876,-76985.1083134,0.0003927,5]
[314426987,1708333838884,-279.40691123,0.0003927,2]
[314426988,1708333838894,-76985.1083134,0.0003928,5]
[314426989,1708333838903,-153970.216627,0.0003928,5]
[314426990,1708333838912,-500.0,0.0003928,4]
[314426991,1708333838922,-170.38,0.0003928,4]
[314426992,1708333838931,-552.23,0.0003928,4]
[314426993,1708333838940,-500.0,0.0003928,4]
[314426994,1708333838949,-500.0,0.0003928,4]
[314426995,1708333838957,-500.0,0.0003928,4]
[314426996,1708333838966,-500.0,0.0003928,4]
[314426997,1708333838975,-173.82,0.0003928,4]
[314426998,1708333838984,-500.0,0.0003928,4]
[314426999,1708333838993,-270.36,0.0003928,4]
[314427000,1708333839002,-153970.216627,0.0003928,5]
[314427001,1708333839012,-282.82531311,0.00039288,10]
[314427002,1708333839021,-500.0,0.00039289,4]
[314427003,1708333839030,-500.0,0.00039289,2]
[314427004,1708333839040,-245.01,0.00039289,2]
[314427005,1708333839050,-185.0,0.00039289,4]
[314427006,1708333839059,-500.0,0.00039289,2]
[314427007,1708333839068,-552.84,0.00039289,2]
[314427008,1708333839078,-641.93,0.00039289,4]
[314427009,1708333839087,-500.0,0.00039289,4]
[314427010,1708333839096,-500.0,0.00039289,4]
[314427011,1708333839106,-500.0,0.00039289,4]
[314427012,1708333839115,-206.01,0.00039289,4]
[314427013,1708333839124,-516.65,0.00039289,4]
[314427014,1708333839133,-533.86,0.00039289,4]
[314427015,1708333839142,-500.0,0.00039289,4]
[314427016,1708333839151,-623.53,0.00039289,4]
[314427017,1708333839160,-500.0,0.00039289,4]
[314427018,1708333839168,-200.0,0.00039289,4]
[314427019,1708333839178,-500.0,0.00039289,4]
[314427020,1708333839187,-539.28390424,0.00039289,4]
[314427021,1708333839197,-519.98871953,0.00039289,4]
[314427022,1708333839206,-531.03124406,0.00039289,4]
[314427023,1708333839215,-500.0,0.00039289,4]
[314427024,1708333839224,-465.78,0.00039289,4]
[314427025,1708333839233,-500.0,0.00039289,4]
[314427026,1708333839243,-500.0,0.00039289,4]
[314427027,1708333839252,-500.0,0.00039289,4]
[314427028,1708333839261,-564.23,0.00039289,4]
[314427029,1708333839270,-535.44454686,0.00039289,4]
[314427030,1708333839281,-500.0,0.00039289,4]
[314427031,1708333839291,-500.0,0.00039289,4]
[314427032,1708333839301,-444.18,0.00039289,4]
[314427033,1708333839310,-620.37312111,0.00039289,4]
[314427034,1708333839320,-164.49344346,0.00039289,4]
[314427035,1708333839330,-539.87542336,0.00039289,4]
[314427036,1708333839339,-566.11740292,0.00039289,4]
[314427037,1708333839349,-507.63567476,0.00039289,4]
[314427038,1708333839359,-500.0,0.00039289,4]
[314427039,1708333839369,-168.04051404,0.00039289,4]
[314427040,1708333839378,-596.43,0.00039289,4]
[314427041,1708333839387,-500.0,0.00039289,4]
[314427042,1708333839397,-566.86459345,0.00039289,4]
[314427043,1708333839406,-240.64460659,0.00039289,4]
[314427044,1708333839415,-500.0,0.00039289,4]
[314427045,1708333839425,-500.0,0.00039289,4]
[314427046,1708333839434,-191.68,0.00039289,4]
[314427047,1708333839443,-544.41372909,0.00039289,4]
[314427048,1708333839453,-569.01714749,0.00039289,4]
[314427049,1708333839462,-500.0,0.00039289,4]
[314427050,1708333839471,-500.0,0.00039289,4]
[314427051,1708333839481,-259.94,0.00039289,4]
[314427052,1708333839490,-500.0,0.00039289,4]
[314427053,1708333839499,-500.0,0.00039289,4]
[314427054,1708333839509,-532.93,0.00039289,4]
[314427055,1708333839518,-557.48506639,0.00039289,4]
[314427056,1708333839527,-500.0,0.00039289,4]
[314427057,1708333839536,-534.11,0.00039289,4]
[314427058,1708333839545,-534.11,0.00039289,4]
[314427059,1708333839554,-534.11,0.00039289,4]
[314427060,1708333839566,-534.11,0.00039289,4]
[314427061,1708333839575,-500.0,0.00039289,4]
[314427062,1708333839584,-500.0,0.00039289,4]
[314427063,1708333839593,-274.37,0.00039289,4]
[314427064,1708333839603,-500.0,0.00039289,4]
[314427065,1708333839612,-500.0,0.00039289,4]
[314427066,1708333839621,-542.48851131,0.00039289,4]
[314427067,1708333839631,-613.95,0.00039289,4]
[314427068,1708333839640,-500.0,0.00039289,4]
[314427069,1708333839650,-536.38787827,0.00039289,4]
[314427070,1708333839660,-556.9745787,0.00039289,4]
[314427071,1708333839669,-500.0,0.00039289,4]
[314427072,1708333839679,-500.0,0.00039289,4]
[314427073,1708333839688,-500.0,0.00039289,4]
[314427074,1708333839697,-566.29960572,0.00039289,4]
[314427075,1708333839706,-500.0,0.00039289,4]
[314427076,1708333839715,-500.0,0.00039289,4]
[314427077,1708333839724,-295.12924329,0.00039289,4]
[314427078,1708333839733,-454.92070371,0.00039289,4]
[314427079,1708333839743,-500.0,0.00039289,4]
[314427080,1708333839752,-500.0,0.00039289,4]
[314427081,1708333839763,-500.0,0.00039289,4]
[314427082,1708333839771,-500.0,0.00039289,4]
[314427083,1708333839780,-500.0,0.00039289,4]
[314427084,1708333839789,-500.0,0.00039289,4]
[314427085,1708333839799,-500.0,0.00039289,4]
[314427086,1708333839808,-500.0,0.00039289,4]
[314427087,1708333839817,-500.0,0.00039289,4]
[314427088,1708333839826,-500.0,0.00039289,4]
[314427089,1708333839835,-500.0,0.00039289,4]
[314427090,1708333839844,-500.0,0.00039289,4]
[314427091,1708333839853,-500.0,0.00039289,4]
[314427092,1708333839862,-153970.216627,0.0003929,5]
[314427093,1708333839871,-29802.09362922,0.00039297,2]
[314427094,1708333839881,-500.0,0.00039298,31]
[314427095,1708333839890,-500.0,0.00039298,31]
[314427096,1708333839900,-500.0,0.00039298,31]
[314427097,1708333839910,-500.0,0.00039298,31]
[314427098,1708333839919,-500.0,0.00039298,31]
[314427099,1708333839928,-500.0,0.00039298,31]
[314427100,1708333839937,-500.0,0.00039298,31]
[314427101,1708333839946,-333.21952323,0.00039298,31]
[314427102,1708333839955,-250.0,0.00039299,2]
[314427103,1708333839964,-164.66759993,0.00039299,2]
[314427104,1708333839973,-500.0,0.00039299,4]
[314427105,1708333839983,-500.0,0.00039299,4]
[314427106,1708333839991,-500.0,0.00039299,4]
[314427107,1708333840001,-500.0,0.00039299,4]
[314427108,1708333840011,-500.0,0.00039299,4]
[314427109,1708333840020,-534.11,0.00039299,4]
[314427110,1708333840029,-534.11,0.00039299,4]
[314427111,1708333840039,-534.11,0.00039299,4]
[314427112,1708333840048,-534.11,0.00039299,4]
[314427113,1708333840057,-534.11,0.00039299,4]
[314427114,1708333840065,-534.11,0.00039299,4]
[314427115,1708333840075,-377.83,0.00039299,4]
[314427116,1708333840086,-180400.58541789,0.000393,3]
[314427117,1708333840095,-1153906.39897697,0.000393,2]
[314427118,1708333840104,-32461.87961605,0.000393,2]
[314427119,1708333840113,-831.4456099,0.000393,2]
[314427120,1708333840122,-422.63970033,0.000393,2]
[314427121,1708333840131,-150.0,0.00039366,2]
[314427122,1708333840140,-522.38850044,0.0003939,2]
[314427123,1708333840149,-7172.36812346,0.00039421,2]
[314427124,1708333840159,-260.51428266,0.00039525,2]
[314427125,1708333840168,-260.51428264,0.00039525,2]
[314427126,1708333840177,-260.51428264,0.00039525,2]
[314427127,1708333840186,-165.38,0.00039632,2]
[314427128,1708333840195,-167.88,0.00039726,2]
[314427129,1708333840204,-159.0,0.00039785,7]
[314427130,1708333840212,-2162.7183006,0.000398,7]
[314427131,1708333840221,-730.83,0.00039828,2]
[314427132,1708333840229,-500.0,0.00039847,2]
[314427133,1708333840237,-39472.87888964,0.0003988,2]
[314427134,1708333840247,-150.0,0.00039888,2]
[314427135,1708333840256,-150.567,0.00039888,2]
[314427136,1708333840265,-954.0,0.00039888,2]
[314427137,1708333840276,-842.0,0.00039888,2]
[314427138,1708333840287,-599.0,0.00039888,2]
[314427139,1708333840296,-216.0,0.00039888,2]
[314427140,1708333840305,-1255.0,0.00039888,2]
[314427141,1708333840314,-1134.0,0.00039888,2]
[314427142,1708333840324,-1949.0,0.00039888,2]
[314427143,1708333840333,-2815.226,0.00039888,2]
[314427144,1708333840342,-172.91,0.00039915,2]
[314427145,1708333840353,-500.0,0.0003992,4]
[314427146,1708333840362,-500.0,0.00039929,4]
[314427147,1708333840371,-534.11,0.00039929,4]
[314427148,1708333840380,-196280.37445559,0.0003993,2]
[314427149,1708333840390,-491.51376351,0.0004,4]
[314427150,1708333840398,-3200.0,0.0004,4]
[314427151,1708333840407,-2008.83409558,0.0004,4]
[314427152,1708333840416,-255.0,0.0004,12]
[314427153,1708333840425,-5011.76,0.0004,2]
[314427154,1708333840434,-312.0,0.0004,2]
[314427155,1708333840443,-1000.0,0.0004,2]
[314427156,1708333840452,-151.0,0.00040017,2]
[314427157,1708333840461,-516.87,0.00040044,2]
[314427158,1708333840472,-165.38,0.00040098,2]
[314427159,1708333840482,-151.0,0.00040263,7]
[314427160,1708333840491,-150.0,0.000403,29]
[314427161,1708333840500,-312.51780327,0.00040333,32]
[314427162,1708333840509,-150.0,0.00040375,2]
[314427163,1708333840518,-750.0,0.00040395,2]
[314427164,1708333840528,-1009.05517466,0.000404,4]
[314427165,1708333840537,-151.0,0.000404,7]
[314427166,1708333840545,-534.11,0.00040433,4]
[314427167,1708333840555,-534.11,0.00040433,4]
[314427168,1708333840564,-534.11,0.00040433,4]
[314427169,1708333840573,-534.11,0.00040433,4]
[314427170,1708333840582,-534.11,0.00040433,4]
[314427171,1708333840591,-534.11,0.00040433,4]
[314427172,1708333840600,-534.11,0.00040433,4]
[314427173,1708333840609,-534.11,0.00040433,4]
[314427174,1708333840618,-534.11,0.00040433,4]
[314427175,1708333840627,-534.11,0.00040433,4]